Workbook

Sheet Лист1
A1: Школа | C1: МБОУ СОШ с.Старые Казанчи | F1: Утвердил: | G1: должность | H1: директор
A2: Типовое примерное меню приготавливаемых блюд | G2: фамилия | H2: М.А.Нуриахметов
A3: Возрастная категория | E3: 7-12 лет | G3: дата | H3: 2023-10-02
A5: Неделя | B5: День недели | C5: Прием пищи | D5: Раздел меню | E5: Блюда | F5: Вес блюда, г | G5: Белки | H5: Жиры | I5: Углеводы | J5: Калорийность | K5: № рецептуры | L5: Цена
A6: 1 | B6: 1 | C6: Завтрак | D6: гор.блюдо | E6: Гуляш из говядины | F6: 100 | G6: 16.4 | H6: 17.1 | I6: 2.7 | J6: 232 | K6: 30 | L6: 51.84
D7: гарнир | E7: Макаронные изделия отварные с маслом | F7: 180/5 | G7: 6.6 | H7: 4.7 | I7: 39.4 | J7: 230 | K7: 24 | L7: 6.17
D8: гор.напиток | E8: чай с сахаром | F8: 200 | G8: 0.1 | H8: 0 | I8: 9.1 | J8: 35 | K8: 12 | L8: 4.92
D9: хлеб | E9: хлеб пшеничный | F9: 60 | G9: 5.46 | H9: 0.48 | I9: 29.52 | J9: 141 | K9: 6 | L9: 3.16
D10: фрукты | E10: яблоко | F10: 100 | G10: 0.2 | H10: 0.4 | I10: 9.8 | J10: 35 | K10: 4 | L10: 8.1
D13: итого | F13: 645 | G13: 28.76 | H13: 22.68 | I13: 90.52 | J13: 682 | L13: =L6+L7+L8+L9 -> 66.09
A14: =A6 -> 1 | B14: =B6 -> 1 | C14: Обед | D14: закуска
D15: 1 блюдо
D16: 2 блюдо
D17: гарнир
D18: напиток
D19: хлеб бел.
D20: хлеб черн.
D23: итого
A24: =A6 -> 1 | B24: =B6 -> 1 | C24: Итого за день:
A25: 1 | B25: 2 | C25: Завтрак | D25: гор.блюдо
E26: каша гречневая молочная вязкая | F26: 250/7 | G26: 10.9 | H26: 11.3 | I26: 44.5 | J26: 325 | K26: 13 | L26: 44.97
D27: гор.напиток | E27: компот из смеси сухофруктов | F27: 200 | G27: 0.5 | H27: 0.1 | I27: 31.2 | J27: 121 | K27: 14 | L27: 4.14
D28: хлеб | E28: хлеб пшеничный | F28: 60 | G28: 5.46 | H28: 0.48 | I28: 29.52 | J28: 141 | K28: 6 | L28: 3.16
D29: фрукты
D30: булочное
E31: сок для детского питания | F31: 200 | G31: 0 | H31: 0 | I31: 11.2 | J31: 45 | K31: 40 | L31: 20
D32: итого | F32: 717 | G32: 16.86 | H32: 11.88 | I32: 116.42 | J32: 632 | L32: =L26+L27+L28+L31 -> 72.27
A33: =A25 -> 1 | B33: =B25 -> 2 | C33: Обед | D33: закуска
D34: 1 блюдо
D35: 2 блюдо
D36: гарнир
D37: напиток
D38: хлеб бел.
D39: хлеб черн.
D42: итого
A43: =A25 -> 1 | B43: =B25 -> 2 | C43: Итого за день:
A44: 1 | B44: 3 | C44: Завтрак | D44: гор.блюдо | E44: фрикадельки мясные | F44: 100 | G44: 14.1 | H44: 11.8 | I44: 10.4 | J44: 205 | K44: 37 | L44: 36.09
E45: каша"Артек"молочная вязкая | F45: 180/5 | G45: 7.2 | H45: 7.2 | I45: 36.8 | J45: 242 | K45: 16 | L45: 16.08
D46: гор.напиток | E46: чай с сахаром | F46: 200 | G46: 0.1 | H46: 0 | I46: 9.1 | J46: 35 | K46: 12 | L46: 4.92
D47: хлеб | E47: хлеб пшеничный | F47: 60 | G47: 5.46 | H47: 0.48 | I47: 29.52 | J47: 141 | K47: 6 | L47: 3.16
D48: фрукты
D51: итого | F51: 545 | G51: 26.76 | H51: 19.48 | I51: 96.72 | J51: 623 | L51: =L44+L45+L46+L47 -> 60.25
A52: =A44 -> 1 | B52: =B44 -> 3 | C52: Обед | D52: закуска
D53: 1 блюдо
D54: 2 блюдо
D55: гарнир
D56: напиток
D57: хлеб бел.
D58: хлеб черн.
D61: итого
A62: =A44 -> 1 | B62: =B44 -> 3 | C62: Итого за день:
A63: 1 | B63: 4 | C63: Завтрак | D63: гор.блюдо
D64: гарнир | E64: каша молочная "Дружба" | F64: 180/5 | G64: 5.6 | H64: 7.6 | I64: 29.5 | J64: 209 | K64: 27 | L64: 15.68
D65: гор.напиток | E65: какао с молоком | F65: 200 | G65: 3.3 | H65: 3.1 | I65: 13.65 | J65: 94 | K65: 25 | L65: 10.08
D66: хлеб | E66: хлеб пшеничный | F66: 60 | G66: 5.46 | H66: 0.48 | I66: 29.52 | J66: 141 | K66: 6 | L66: 3.16
D67: фрукты
D68: булочное
D69: кисломолоч | E69: йогурт йодированный для детского питания | F69: 100 | G69: 2.8 | H69: 3.2 | I69: 10.1 | J69: 82 | K69: 39 | L69: 29
D70: итого | F70: 545 | G70: 17.16 | H70: 14.38 | I70: 82.72 | J70: 526 | L70: =L64+L65+L66+L69 -> 57.92
A71: =A63 -> 1 | B71: =B63 -> 4 | C71: Обед | D71: закуска
D72: 1 блюдо
D73: 2 блюдо
D74: гарнир
D75: напиток
D76: хлеб бел.
D77: хлеб черн.
D80: итого
A81: =A63 -> 1 | B81: =B63 -> 4 | C81: Итого за день:
A82: 1 | B82: 5 | C82: Завтрак | D82: гор.блюдо | E82: плов из говядины | F82: 200 | G82: 20.9 | H82: 20.1 | I82: 30.5 | J82: 393 | K82: 42 | L82: 72.67
D84: гор.напиток | E84: чай с ахаром | F84: 200 | G84: 0.1 | H84: 0 | I84: 9.1 | J84: 35 | K84: 12 | L84: 4.92
D85: хлеб | E85: хлеб пшеничный | F85: 60 | G85: 5.46 | H85: 0.48 | I85: 29.52 | J85: 141 | K85: 6 | L85: 3.16
D86: фрукты | E86: яблоко | F86: 100 | G86: 0.2 | H86: 0.4 | I86: 9.8 | J86: 44 | K86: 4 | L86: 8.1
D87: закуска
D89: итого | F89: 560 | G89: 26.66 | H89: 20.98 | I89: 78.92 | J89: 613 | L89: =L82+L84+L85+L86 -> 88.85
A90: =A82 -> 1 | B90: =B82 -> 5 | C90: Обед | D90: закуска
D91: 1 блюдо
D92: 2 блюдо
D93: гарнир
D94: напиток
D95: хлеб бел.
D96: хлеб черн.
D97: булочное
D99: итого
A100: =A82 -> 1 | B100: =B82 -> 5 | C100: Итого за день:
A101: 2 | B101: 1 | C101: Завтрак | D101: гор.блюдо | E101: Гуляш из говядины | F101: 100 | G101: 16.4 | H101: 17.1 | I101: 2.7 | J101: 232 | K101: 30 | L101: 51.84
E102: макароны отварные с маслом | F102: 180/5 | G102: 6.6 | H102: 4.7 | I102: 39.4 | J102: 230 | K102: 24 | L102: 6.17
D103: гор.напиток | E103: чай с сахаром | F103: 200 | G103: 0.1 | H103: 0 | I103: 9.1 | J103: 35 | K103: 12 | L103: 4.92
D104: хлеб | E104: хлеб пшеничный | F104: 60 | G104: 5.46 | H104: 0.48 | I104: 29.52 | J104: 141 | K104: 6 | L104: 3.16
D105: фрукты
D106: напиток | E106: Сок для детского питания | F106: 200 | G106: 0 | H106: 0 | I106: 11.2 | J106: 35 | K106: 40 | L106: 25
D108: итого | F108: 745 | G108: =G101+G102+G103+G104 -> 28.56 | H108: 22.28 | I108: 91.92 | J108: =J101+J102+J103+J104 -> 638 | L108: =L101+L102+L103+L104+L106 -> 91.09
A109: =A101 -> 2 | B109: =B101 -> 1 | C109: Обед | D109: закуска
D110: 1 блюдо
D111: 2 блюдо
D112: гарнир
D113: напиток
D114: хлеб бел.
D115: хлеб черн.
D118: итого
A119: =A101 -> 2 | B119: =B101 -> 1 | C119: Итого за день:
A120: 2 | B120: 2 | C120: Завтрак | D120: гор.блюдо | E120: фрикадельки из птицы | F120: 100/5 | G120: 19.1 | H120: 1.8 | I120: 9.4 | J120: 131 | K120: 36 | L120: 32.04
E121: Каша рисовая молочная | F121: 180/5 | G121: 5.2 | H121: 7.2 | I121: 39.4 | J121: 36.1 | K121: 23 | L121: 20.73
D122: гор.напиток | E122: чай с сахаром | F122: 200 | G122: 0.1 | H122: 0 | I122: 9.1 | J122: 35 | K122: 12 | L122: 4.22
D123: хлеб | E123: хлеб пшеничный | F123: 60 | G123: 5.46 | H123: 0.48 | I123: 29.52 | J123: 141 | K123: 6 | L123: 3.16
D124: фрукты
D125: булочное
D127: итого | F127: 550 | G127: =G120+G121++G123 -> 29.76 | H127: =H120+H121+H122+H123 -> 9.48 | I127: =I120+I121+I122+I123 -> 87.42 | J127: =J120+J121+J122+J123 -> 343.1 | L127: =L120+L121+L122+L123 -> 60.15
A128: =A120 -> 2 | B128: =B120 -> 2 | C128: Обед | D128: закуска
D129: 1 блюдо
D130: 2 блюдо
D131: гарнир
D132: напиток
D133: хлеб бел.
D134: хлеб черн.
D137: итого
A138: =A120 -> 2 | B138: =B120 -> 2 | C138: Итого за день:
A139: 2 | B139: 3 | C139: Завтрак | D139: гор.блюдо
E140: каша пшенная рассыпчатая | F140: 180/5 | G140: 7.8 | H140: 6.3 | I140: 43.6 | J140: 266 | K140: 22 | L140: 34.25
D141: гор.напиток | E141: чай с сахаром | F141: 200 | G141: 0.1 | H141: 0 | I141: 9.1 | J141: 35 | K141: 12 | L141: 4.92
D142: хлеб | E142: хлеб пшеничный | F142: 60 | G142: 5.46 | H142: 0.48 | I142: 29.52 | J142: 141 | K142: 6 | L142: 3.16
D143: фрукты
E144: сок для детского питания | F144: 200 | G144: 0 | H144: 0 | I144: 11.2 | J144: 45 | K144: 40 | L144: 25
D146: итого | F146: 645 | G146: 25.99 | H146: 25.99 | I146: 25.99 | J146: 500 | L146: =L140+L141+L142+L144 -> 67.33
A147: =A139 -> 2 | B147: =B139 -> 3 | C147: Обед | D147: закуска
D148: 1 блюдо
D149: 2 блюдо
D150: гарнир
D151: напиток
D152: хлеб бел.
D153: хлеб черн.
D156: итого
A157: =A139 -> 2 | B157: =B139 -> 3 | C157: Итого за день:
A158: 2 | B158: 4 | C158: Завтрак | D158: гор.блюдо | E158: фрикадельки мясные | F158: 100 | G158: 14.1 | H158: 11.8 | I158: 10.4 | J158: 205 | K158: 37 | L158: 36.09
E159: каша ячневая рассыпчатая | F159: 180/5 | G159: 5.8 | H159: 4.8 | I159: 36.3 | J159: 215 | K159: 38 | L159: 3.32
D160: гор.напиток | E160: чай с лимоном и сахаром | F160: 200 | G160: 0.1 | H160: 0 | I160: 9.3 | J160: 37 | K160: 11 | L160: 6.25
D161: хлеб | E161: хлеб пшеничный | F161: 60 | G161: 5.46 | H161: 0.48 | I161: 29.52 | J161: 141 | K161: 6 | L161: 3.16
D162: фрукты
D163: кисломол | E163: сыр (порциями ) | F163: 10 | G163: 2.63 | H163: 2.63 | I163: 0 | J163: 35 | K163: 5 | L163: 5.98
D165: итого | F165: 555 | G165: 28.09 | H165: 19.71 | I165: 85.52 | J165: 6.33 | L165: =L158+L159+L160+L161+L163 -> 54.8
A166: =A158 -> 2 | B166: =B158 -> 4 | C166: Обед | D166: закуска
D167: 1 блюдо
D168: 2 блюдо
D169: гарнир
D170: напиток
D171: хлеб бел.
D172: хлеб черн.
D175: итого
A176: =A158 -> 2 | B176: =B158 -> 4 | C176: Итого за день:
A177: 2 | B177: 5 | C177: Завтрак | D177: гор.блюдо
E178: каша "Артек" молочная вязкая | F178: 250/7 | G178: 10 | H178: 10 | I178: 51.1 | J178: 336 | K178: 16 | L178: 16.08
D179: гор.напиток | E179: кисель из концетрата на плодовых или ягодных экстрактах | F179: 200 | G179: 0 | H179: 0 | I179: 20 | J179: 76 | K179: 29 | L179: 3.1
D180: хлеб | E180: хлеб пшеничный | F180: 60 | G180: 5.46 | H180: 0.48 | I180: 29.52 | J180: 141 | K180: 6 | L180: 3.16
D181: фрукты | E181: яблоко | F181: 100 | G181: 0.4 | H181: 0.4 | I181: 9.8 | J181: 47 | K181: 4 | L181: 8.1
D182: булочное
D184: итого | F184: 617 | G184: 15.86 | H184: 10.88 | I184: 110.42 | J184: 600 | L184: =L178+L179+L180+L181 -> 30.44
A185: =A177 -> 2 | B185: =B177 -> 5 | C185: Обед | D185: закуска
D186: 1 блюдо
D187: 2 блюдо
D188: гарнир
D189: напиток
D190: хлеб бел.
D191: хлеб черн.
D194: итого
A195: =A177 -> 2 | B195: =B177 -> 5 | C195: Итого за день:
